{"text_format":"2","workbook":"xlsx","n_sheets":2,"sheets":["Ártábla","Felolvasólap"],"not_rendered":{"charts":0,"images":0,"macros":0,"external_links":0,"defined_names":0,"comments":0,"pivot_tables":0},"unopened":[],"bounds":{"document_bytes":16777216,"sheet_cells":100000,"run_cost":"one","rows_first":2000,"rows_last":500,"rows_between":2000,"halvings":0,"cell_chars":16384,"cell_head_chars":4096},"cells_cut":0,"cells_raw":0,"read":"whole","date_system":"1900"}

{"sheet":"Ártábla","index":0,"n_rows":43,"n_cols":9,"rows_kept":43,"cut":false,"hidden":false,"merged":[[0,0,0,8],[42,0,42,1],[2,0,2,1],[19,0,19,1],[34,0,34,1],[28,0,28,1],[32,0,32,1],[7,0,7,1],[12,0,12,1],[26,0,26,1],[30,0,30,1],[6,0,6,1],[11,0,11,1],[18,0,18,1],[25,0,25,1]]}
["ÉRPROTÉZISEK, HÁLÓK, LIGASURE "]
["Megnevezés","Termékek műszaki leírása","Megajánlott termék megnevezése, bemutatása","Megajánlott termék rendelési cikkszáma","2 éves mennyiség db","nettó egységár","nettó összár","ÁFA mértéke %","bruttó összár"]
["1. részajánlati kör: Érprotézisek I. "]
["1.1. Érprotézis, stretch (min.30%), sterilizálható, vékony falvastagság  7mm/40cm","Érprotézis PTFE, stretch (longitudinálisan nyújtható min.30%), sterilizálható, vékony falvastagság  7mm/40cm",null,null,16,null,{"$f":"E4*F4","v":0},0.27,{"$f":"G4*(1+H4)","v":0}]
["1.2. Érprotézis, stretch (min.30%), sterilizálható, normál falvastagság, 20mm/30cm","Érprotézis PTFE, stretch (longitudinálisan nyújtható min.30%), sterilizálható, normál falvastagság, 20mm/30cm",null,null,6,null,{"$f":"E5*F5","v":0},0.27,{"$f":"G5*(1+H5)","v":0}]
["1.3. Érprotézis, stretch (min.30%), sterilizálható, normál falvastagság, 18mm/30cm","Érprotézis PTFE, stretch (longitudinálisan nyújtható min.30%), sterilizálható, normál falvastagság, 18mm/30cm",null,null,2,null,0,0.27,0]
["1. részajánlati kör összesen:",{"$nulls":5},{"$f":"SUM(G4:G6)","v":0},null,{"$f":"SUM(I4:I6)","v":0}]
["2. részajánlati kör: Érprotézisek II."]
["2.1. Érprotézis, gyűrűs, falába kötött heparinnal 6mmx40cmx50cm","Érprotézis PTFE, gyűrűs, falába kötött heparinnal 6mmx40cmx50cm",null,null,6,null,{"$f":"E9*F9","v":0},0.27,{"$f":"G9*(1+H9)","v":0}]
["2.2. Érprotézis, gyűrűs, falába kötött heparinnal 6mmx60cmx70cm","Érprotézis PTFE, gyűrűs, falába kötött heparinnal 6mmx60cmx70cm",null,null,4,null,{"$f":"E10*F10","v":0},0.27,{"$f":"G10*(1+H10)","v":0}]
["2.3. Érprotézis, gyűrűs, falába kötött heparinnal 8mmx30cmx40cm","Érprotézis PTFE, gyűrűs, falába kötött heparinnal 8mmx30cmx40cm",null,null,6,null,0,0.27,0]
["2. részajánlati kör összesen:",{"$nulls":5},{"$f":"SUM(G9:G11)","v":0},null,{"$f":"SUM(I9:I11)","v":0}]
["3. részajánlati kör: Érprotézisek III."]
["3.1. Érprotézis dacron, kollagénes 14/7mm/40cm","Érprotézis dacron alapanyagú, kötött, kollagénnel bevont, bifurcatios 14/7mm/40cm",null,null,30,null,{"$f":"E14*F14","v":0},0.27,{"$f":"G14*(1+H14)","v":0}]
["3.2. Érprotézis dacron, kollagénes 16/8mm/40cm","Érprotézis dacron alapanyagú, kötött kollagénnel bevont, bifurcatios 16/8mm/40cm",null,null,40,null,0,0.27,0]
["3.3. Érprotézis dacron, kollagénes 26mm/50cm","Érprotézis dacron alapanyagú, kötött, kollagénnel bevont, 26mm/50cm, a hosszúság megengedett maximális eltérése 2%",null,null,2,null,0,0.27,0]
["3.4. Érprotézis dacron, kollagénes 28mm/50cm","Érprotézis dacron alapanyagú, kötött kollagénnel bevont,  28mm/50cm, a hosszúság megengedett maximális eltésése 2%",null,null,2,null,0,0.27,0]
["3.5. Érprotézis dacron, kollagénes 7mm/50cm","Érprotézis dacron alapanyagú, kötött, kollagénnel bevont, 7mm/50cm, a hosszúság megengedett maximális eltérése 2%",null,null,2,null,0,0.27,0]
["3. részajánlati kör összesen:",{"$nulls":5},{"$f":"SUM(G14:G18)","v":0},null,{"$f":"SUM(I14:I18)","v":0}]
["4. részajánlati kör: Hálók I."]
["4.1. sérvháló 3D 30x30cm","30x30 cm-es egyszerhasználatos sérvháló poliészter alapanyagból. A hidrofil poliészter anyag biztosítja a hasfalba való gyors beépülést. A háló szerkezete:  2.55 mm x 1,72 mm-es hézagú, makroporózus, 3 dimenziós szövéstechnikával, vastagsága 1,7 mm, felszíni sűrűsége 78 g/m2",null,null,72,null,{"$f":"E21*F21","v":0},0.27,{"$f":"G21*(1+H21)","v":0}]
["4.2. bélre fektethető sérvháló 3D 15x10cm,  X öltéssel","15x10 cm-es egyszerhasználatos bélre fektethető szövetszeparáló sérvháló poliészter alapanyagból, a háló bélre fektethető oldalán felszívódó sertés kollagén filmréteg biztosítja a szeparáló hatást, míg hidrofil poliészter anyag biztosítja a hasfalba való gyors beépülést, speciális X öltéssel biztosított 2 mm x 4,8 mm-es hézagú makroporózus 3 dimenziós szövéstechnikával, vastagsága 1,61 mm, felszíni sűrűsége 78 g/m2.",null,null,4,null,0,0.27,0]
["4.3. bélre fektethető sérvháló 3D 20x15cm,  X öltéssel","20x15 cm-es egyszerhasználatos bélre fektethető szövetszeparáló sérvháló poliészter alapanyagból, a háló bélre fektethető oldalán felszívódó sertés kollagén filmréteg biztosítja a szeparáló hatást, míg hidrofil poliészter anyag biztosítja a hasfalba való gyors beépülést, speciális X öltéssel biztosított 2 mm x 4,8 mm-es hézagú makroporózus 3 dimenziós szövéstechnikával, vastagsága 1,7 mm, felszíni sűrűsége 78 g/m2",null,null,2,null,0,0.27,0]
["4.4. bélre fektethető sérvháló 3D 20x25cm,  X öltéssel","20x25 cm-es egyszerhasználatos bélre fektethető szövetszeparáló sérvháló poliészter alapanyagból, a sérvháló bélre fektethető oldalán felszívódó sertés kollagén filmréteg biztosítja a szeparáló hatást, míg hidrofil poliészter anyag biztosítja a hasfalba való gyors beépülést, speciális X öltéssel biztosított 2 mm x 4,8 mm-es hézagú makroporózus 3 dimenziós szövéstechnikával, vastagsága 1,7 mm, felszíni sűrűsége 78 g/m2",null,null,2,null,0,0.27,0]
["4.5. bélre fektethető sérvháló 3D 30x20cm,  X öltéssel","30x20 cm-es egyszerhasználatos bélre fektethető szövetszeparáló sérvháló poliészter alapanyagból, a háló bélre fektethető oldalán felszívódó sertés kollagén filmréteg biztosítja a szeparáló hatást, míg hidrofil poliészter anyag biztosítja a hasfalba való gyors beépülést, speciális X öltéssel biztosított 2 mm x 4,8 mm-es hézagú makroporózus 3 dimenziós szövéstechnikával, vastagsága 1,7 mm, felszíni sűrűsége 78 g/m2",null,null,2,null,0,0.27,0]
["4. részajánlati kör összesen:",{"$nulls":5},{"$f":"SUM(G21:G25)","v":0},null,{"$f":"SUM(I21:I25)","v":0}]
["5. részajánlati kör: Hálók II."]
["5. polypropilén önfixáló háló 15x9cm ","Önfixáló, részben felszívódó, 50% monofil polipropilén, 50% politejsav alapanyagú sérvháló,  Méret: 15 x 9cm ",null,null,360,null,{"$f":"E28*F28","v":0},0.27,{"$f":"G28*(1+H28)","v":0}]
["6. részajánlati kör: Hálók III."]
["6. bélre fektethető, szabható háló","Egyszerhasználatos, bélre fektethető szövetszeparáló háló poliészter alapanyagból, a hidrofil polészter anyag biztosítja a hasfalba való gyors beépülést. A szövetszeparáló hatás sérülése nélkül méretre szabható. 3D szövési technológiával készül, közepén orientációs marker található, mely biztosítja a defektus középpontjának láthatóságát és oda való pozícionálását és érzékelhetővé teszi ha a háló elforgatásra kerül. Vérrel érintkezve is átlátszó marad a háló. Mérete: 15x10 cm. Macroporozus, porus méret: 2,3 X 3,3 mm. A háló bélre fektethető oldalán felszívódó sertés kollagén filmréteg biztosítja a szeparáló hatást. ",null,null,2,null,0,0.27,0]
["7. részajánlati kör: Hálók IV."]
["7. Polypropilene sérvháló 30x30 cm","Steril, szintetikus, monofil, színtelen, polypropilene alapanyagú sérvháló 30x30 cm, sűrűség 69-71 g/m2, vastagság 0,55-0,57 mm, pórus méret 1,2-1,4 mm, szálvastagság 0,14-0,16 mm",null,null,60,null,{"$f":"E32*F32","v":0},0.27,{"$f":"G32*(1+H32)","v":0}]
["8. részajánlati kör: Hálók V."]
["8. Félig felszívódó sérvháló 6x11 cm","Steril, szintetikus, monofil, 75%-ban PGA-PCL és 25%-ban polypropilene alapanyagú, 6x11 cm, felszívódási idő: 90-110 nap, sűrűség 25-35g/m2, vastagság 0,40-0,60 mm, pórus méret 1,3-2 mm",null,null,10,null,0,0.27,0]
["9. részajánlati kör: Kombinált nagyfrekvenciás elektromos energiát használó energiaplatform, monopoláris, bipoláris és szövetegyesítési funkcióval ellátott elektrosebészeti generátorhoz kézieszközök és fogyóanyagok"]
["9.1. Ligasure 5mm nyitott eszköz 23 cm szárral","Egyszerhasználatos, 5mm átmérőjű nyitott Ligasure bipoláris energiával működő eszköz. Szár hossza 23 cm. \nAz eszköz pofája hajlított, hossza: 20 mm. 350°-ban rotálható szár. ",null,null,12,null,{"$f":"E36*F36","v":0},0.27,{"$f":"G36*(1+H36)","v":0}]
["9.2. Ligasure 18,8 cm nyitott eszköz, finom prepalálásokhoz","Egyszerhasználatos, Olló szerű kialakítású, Ligasure bipoláris energiával működő eszköz. Eszköz hossza 18,8 cm. \nAz eszköz pofája 28°-ban ívelt, hossza: 16,5 mm.",null,null,8,null,0,0.27,0]
["9.3. Ligasure 5 mm laparoszkópos eszköz 37cm szárral","Egyszerhasználatos, 5mm átmérőjű laparoszkópos Ligasure bipoláris energiával működő eszköz. Szár hossza 37 cm. \nAz eszköz pofája egyenes, hossza: 19,5 mm. 180°-ban rotálható szár. ",null,null,40,null,0,0.27,0]
["9.4. Ligasure 5 mm laparoszkópos eszköz 37 cm szárral"," Egyszerhasználatos, 5mm átmérőjű laparoszkópos Ligasure bipoláris energiával működő eszköz. Szár hossza 37cm. \nAz eszköz pofája hajlított, hossza: 20 mm. 350°-ban rotálható szár. ",null,null,20,null,0,0.27,0]
["9.5. Ligasure 10 mm nyitott eszköz 18 cm szárral","Egyszerhasználatos, 10 mm szárátmérőjű Ligasure bipoláris energiával működő eszköz. Szár hossza 18 cm. \nAz eszköz pofája 14°-ban ívelt, hossza: 36 mm  180°-ban rotálható szár.",null,null,12,null,0,0.27,0]
["9.6. Ligasure 10 mm nyitott eszköz 20 cm szárhossz","Egyszerhasználatos, 10 mm szárátmérőjű Ligasure bipoláris energiával működő eszköz. Szár hossza 20 cm. \nAz eszköz pofája egyenes, hossza: 22 mm. 359°-ban rotálható szár.",null,null,8,null,0,0.27,0]
["9.7. Ligasure 10 mm laparoszkópos eszköz 37 cm szárral","Egyszerhasználatos, 10 mm átmérőjű  laparoszkópos Ligasure bipoláris energiával működő eszköz. Szár hossza 37 cm. Az eszköz pofája egyenes, hossza: 22 mm. 359°-ban rotálható szár.",null,null,20,null,0,0.27,0]
["9. részajánlati kör összesen:",{"$nulls":5},{"$f":"SUM(G36:G42)","v":0},null,{"$f":"SUM(I36:I42)","v":0}]

{"sheet":"Felolvasólap","index":1,"n_rows":26,"n_cols":5,"rows_kept":26,"cut":false,"hidden":false,"merged":[[24,0,24,3],[25,0,25,3],[0,0,0,4],[1,0,1,4],[11,0,11,4],[12,0,12,1],[22,0,22,4],[23,0,23,3]]}
["Felolvasólap"]
["Alulírott Ajánlattevő, az ajánlattételi felhívás részletes áttanulmányozását követően, annak feltételeit elfogadva, az alábbi ajánlatot teszem a Szegedi Tudományegyetem által indított „Érprotézis, háló, ligasure” tárgyú közbeszerzési eljárásban:"]
[null,"Ajánlattevő neve:"]
[null,"Székhelye:"]
[null,"Képviselő neve:"]
[null,"Adószáma:"]
[null,"Cégjegyzékszáma:"]
[null,"Bankszámlaszáma:"]
[null,"Közös ajánlattevő neve:"]
[null,"Közös ajánlattevő székhelye:"]
[]
["Ajánlati ár Ft-ban (24 hónapra)*"]
["Részajánlati kör",null,"Nettó ár","ÁFA mértéke","Bruttó ár"]
["1.","Érprotézisek I.",{"$f":"Ártábla!G7","v":0},0.27,{"$f":"Ártábla!I7","v":0}]
["2.","Érprotézisek II.",{"$f":"Ártábla!G12","v":0},0.27,{"$f":"Ártábla!I12","v":0}]
["3.","Érprotézisek III.",{"$f":"Ártábla!G19","v":0},0.27,{"$f":"Ártábla!I19","v":0}]
["4.","Hálók I.",{"$f":"Ártábla!G26","v":0},0.27,{"$f":"Ártábla!I26","v":0}]
["5.","Hálók II.",{"$f":"Ártábla!G28","v":0},0.27,{"$f":"Ártábla!I28","v":0}]
["6.","Hálók III.",{"$f":"Ártábla!G30","v":0},0.27,{"$f":"Ártábla!I30","v":0}]
["7.","Hálók IV.",{"$f":"Ártábla!G32","v":0},0.27,{"$f":"Ártábla!I32","v":0}]
["8.","Hálók V.",{"$f":"Ártábla!G34","v":0},0.27,{"$f":"Ártábla!I34","v":0}]
["9.","Kombinált nagyfrekvenciás elektromos energiát használó energiaplatform, monopoláris, bipoláris és szövetegyesítési funkcióval ellátott elektrosebészeti generátorhoz kézieszközök és fogyóanyagok",{"$f":"Ártábla!G43","v":0},0.27,{"$f":"Ártábla!I43","v":0}]
["*Ajánlattevőnek árfolyamkockázattól mentes, fix árajánlatot kell adnia magyar Forintban!\n\nAjánlatom …….… számozott oldalt tartalmaz."]
["Kelt: …………………….., 2018. ………………… ….. "]
["……………………………………………."]
["ajánlattevő cégszerű aláírása"]